bitfinex/quotes_ETHUSD_20230116
["timestamp","ask_amount","ask_price","bid_price","bid_amount"]
[1673857702785,28.3854,1538.8,1538.1,3.27278678]
[1673857702786,6.4986,1538.8,1538.1,3.27278678]
[1673857702977,6.4986,1538.8,1538.2,9.77368678]
[1673857703188,6.49846,1538.9,1538.3,3.27278678]
[1673857703440,26.23439,1539.1,1538.3,3.27278678]
[1673857703441,26.23439,1539.1,1538.4,9.77304678]
[1673857703612,6.49712,1539.2,1538.5,10.74972146]
[1673857703814,6.49712,1539.2,1538.6,3.27278678]
[1673857704020,12.99424,1539.2,1538.5,0.97730468]
[1673857704290,12.99424,1539.2,1538.5,3.27278678]
[1673857704650,6.49815,1538.9,1538.5,3.27278678]
[1673857704855,0.05634326,1539.0,1538.5,3.27278678]
[1673857704856,6.55411326,1539.0,1538.5,3.27278678]
[1673857705119,0.05634326,1539.0,1538.6,3.27278678]
[1673857705333,0.05634326,1539.0,1538.7,3.27278678]
[1673857705508,0.05634326,1539.0,1538.7,3.60006546]
[1673857705724,0.05634326,1539.0,1538.5,15.49966]
[1673857705725,6.55419326,1539.0,1538.4,8.52418]
[1673857705970,6.55419326,1539.0,1538.5,3.27278678]
[1673857706346,13.05204326,1539.0,1538.2,19.90036]
[1673857706605,6.55419326,1539.0,1538.3,16.27401678]
[1673857706808,0.05634326,1539.0,1538.5,6.49977]
[1673857706983,0.05634326,1539.0,1538.6,3.92276378]
[1673857707194,0.05634326,1539.0,1538.7,8.99883]
[1673857707430,0.05634326,1539.0,1538.7,11.01083]
[1673857707806,0.05891651,1540.0,1538.9,2.009]
[1673857708017,0.05891651,1540.0,1539.4,2.014]
[1673857708289,0.72003681,1540.0,1539.4,5.48818678]
[1673857708598,2.019,1539.7,1539.1,6.49699]
[1673857708749,2.027,1539.5,1538.0,22.8113]
[1673857708960,2.027,1539.5,1538.3,5.29778678]
[1673857708961,12.99492,1539.1,1538.3,5.29778678]
[1673857709237,12.99492,1539.1,1538.4,3.27278678]
[1673857709434,12.99492,1539.1,1538.1,2.28113]
[1673857709435,12.99492,1539.1,1538.1,9.02891218]
[1673857709744,19.49619,1538.8,1538.2,3.27278678]
[1673857710134,19.49619,1538.8,1538.3,3.27278678]
[1673857710341,0.64633918,1538.9,1538.4,0.32727868]
[1673857710578,6.49746,1539.1,1538.5,2.024]
[1673857710781,12.99511,1539.1,1538.5,2.024]
[1673857711202,6.49718,1539.2,1538.6,2.5]
[1673857711812,6.69905,1539.4,1538.6,2.5]
[1673857712021,6.49577,1539.5,1539.0,2.022]
[1673857712268,6.49547,1539.6,1539.0,2.022]
[1673857712489,6.49547,1539.6,1539.1,0.004214]
[1673857713180,12.99004,1539.7,1539.1,0.004214]
[1673857714162,0.004214,1539.6,1538.9,3.27278678]
[1673857714478,12.99214,1539.4,1539.0,3.27278678]
[1673857715049,12.99214,1539.4,1538.9,1.0031916]
[1673857715163,12.99214,1539.4,1538.9,3.27278678]
[1673857715164,12.996354,1539.4,1538.9,3.27278678]
[1673857717794,12.996354,1539.4,1539.0,3.27278678]
[1673857718016,12.996354,1539.4,1538.8,4.525]
[1673857718017,6.49598,1539.5,1539.1,3.27278678]
[1673857718246,6.49598,1539.5,1539.2,3.27278678]
[1673857718247,12.99191,1539.5,1539.2,3.27278678]
[1673857718465,12.99191,1539.5,1538.9,4.51539973]
[1673857718682,15.10205693,1539.5,1539.0,3.27278678]
[1673857719359,15.10205693,1539.5,1538.9,7.73119233]
[1673857719360,12.99191,1539.5,1539.1,3.27278678]
[1673857719522,12.99191,1539.5,1539.2,3.27278678]
[1673857719732,6.49517,1539.7,1539.3,5.28078678]
[1673857719964,6.49517,1539.7,1539.4,3.27278678]
[1673857720188,6.49517,1539.7,1539.5,3.27278678]
[1673857721232,6.49517,1539.7,1539.5,3.60006546]
[1673857722483,6.49517,1539.7,1539.3,4.508]
[1673857722484,12.99034,1539.7,1539.3,4.508]
[1673857722729,12.994554,1539.7,1539.3,3.27278678]
[1673857723340,12.994554,1539.7,1539.0,11.5114]
[1673857723341,12.994554,1539.7,1539.0,3.0]
[1673857723687,12.994554,1539.7,1539.1,3.27278678]
[1673857723828,12.994554,1539.7,1539.2,3.27278678]
[1673857724047,19.48707,1539.5,1538.9,9.1069]
[1673857724249,25.98276,1539.5,1538.7,2.015]
[1673857724734,19.48707,1539.5,1538.7,13.2480492]
[1673857725041,6.49527,1539.6,1538.9,20.78092678]
[1673857725194,6.49527,1539.6,1539.1,2.025]
[1673857725399,6.49527,1539.6,1539.2,3.47528678]
[1673857725614,12.99076,1539.6,1539.2,3.47528678]
[1673857726199,19.491,1539.2,1538.5,2.009]
[1673857726365,19.491,1539.2,1538.6,3.27278678]
[1673857726582,12.994,1539.2,1538.7,3.27278678]
[1673857726830,6.497,1539.2,1538.8,3.27278678]
[1673857727007,6.497,1539.2,1538.6,2.5]
[1673857727008,12.99265,1539.4,1538.9,3.60006546]
[1673857727222,6.49626,1539.4,1539.0,3.27278678]
[1673857727433,6.49626,1539.4,1539.1,3.27278678]
[1673857728427,6.49565,1539.5,1539.2,3.27278678]
[1673857728740,6.49542,1539.6,1539.2,3.60006546]
[1673857729483,12.99007,1539.7,1539.3,3.27278678]
[1673857729642,6.49444,1539.8,1539.4,3.27278678]
[1673857729847,6.49408,1539.9,1539.5,3.27278678]
[1673857730174,6.49408,1539.9,1539.4,2.5]
[1673857730175,6.49408,1539.9,1539.6,3.60006546]
[1673857730371,6.49408,1539.9,1539.3,20.36177171]
[1673857730372,6.49408,1539.9,1539.3,15.62764251]
[1673857730589,12.992374,1539.9,1539.4,3.27278678]
[1673857731375,0.004214,1539.9,1539.5,3.27278678]
[1673857731524,6.56735651,1540.0,1539.6,3.27278678]
[1673857731737,6.56735651,1540.0,1539.7,3.22778677]
[1673857731992,6.56735651,1540.0,1539.8,3.27278678]
[1673857733035,6.56735651,1540.0,1539.3,3.60506251]
[1673857733359,6.56735651,1540.0,1539.4,6.27278678]
[1673857733360,13.06544051,1540.0,1539.4,6.27278678]
[1673857733575,13.06544051,1540.0,1539.5,3.27278678]
[1673857733886,15.67653121,1540.0,1539.5,3.27278678]
[1673857734209,19.48329,1539.8,1539.2,11.35907868]
[1673857734363,19.48329,1539.8,1539.3,3.27278678]
[1673857734570,19.48329,1539.8,1539.4,3.27278678]
[1673857734836,21.431619,1539.8,1539.4,3.27278678]
[1673857735619,6.49443,1539.8,1539.5,3.27278678]
[1673857736098,6.56735651,1540.0,1539.6,3.27278678]
[1673857736308,0.07125658,1540.0,1539.7,3.27278678]
[1673857736520,0.07125658,1540.0,1539.8,3.27278678]
[1673857737195,0.07125658,1540.0,1539.9,3.27278678]
[1673857738503,0.05891651,1540.1,1540.0,2.04194342]
[1673857738717,0.05891651,1540.1,1540.0,28.5358594]
[1673857739037,0.05891651,1540.1,1540.0,14.73728678]
[1673857739196,0.05891651,1540.1,1540.0,5.24378678]
[1673857739409,0.05891651,1540.1,1540.0,6.67926371]
[1673857739635,0.05891651,1540.1,1540.0,4.31778678]
[1673857740992,0.05891651,1540.1,1540.0,17.30478678]
[1673857741202,0.05891651,1540.1,1540.0,19.33178678]
[1673857741426,0.05891651,1540.1,1540.0,30.55941598]
[1673857741665,0.05891651,1540.1,1540.0,34.16447849]
[1673857741816,0.05891651,1540.1,1540.0,40.37522983]
[1673857742242,0.05929846,1540.2,1540.1,15.48616]
[1673857742502,0.05929846,1540.2,1540.1,19.25894678]
[1673857742923,0.05929846,1540.2,1540.1,3.27278678]
[1673857744274,0.05929846,1540.2,1540.1,9.76586678]
[1673857744450,0.05929846,1540.2,1540.1,11.39177546]
[1673857744893,0.05929846,1540.2,1540.1,3.27278678]
[1673857745083,0.05929846,1540.2,1539.8,30.58273868]
[1673857745291,0.05929846,1540.2,1539.9,3.27278678]
[1673857745681,0.05929846,1540.2,1540.0,12.26615678]
[1673857745971,0.05929846,1540.2,1540.1,3.27278678]
[1673857746187,0.05929846,1540.2,1540.1,18.78426246]
[1673857746353,0.05929846,1540.2,1540.1,25.27734246]
[1673857746563,0.05929846,1540.2,1540.1,35.03347166]
[1673857746774,0.05929846,1540.2,1540.1,38.74359668]
[1673857746999,0.05929846,1540.2,1540.1,38.13853417]
[1673857747225,0.00029846,1540.2,1540.1,38.13853417]
[1673857747630,0.06034856,1540.5,1540.2,2.5]
[1673857747857,0.06034856,1540.5,1540.4,3.27278678]
[1673857748184,0.06034856,1540.5,1540.4,16.25642678]
[1673857748371,0.06034856,1540.5,1540.4,9.76460678]
[1673857748959,0.06034856,1540.5,1540.4,20.99055598]
[1673857749210,0.06034856,1540.5,1540.4,19.86148929]
[1673857749421,0.06034856,1540.5,1540.4,22.72306222]
[1673857749843,0.06034856,1540.5,1540.4,9.76460678]
[1673857750058,0.06034856,1540.5,1540.3,6.49196]
[1673857750296,0.06034856,1540.5,1540.3,3.27278678]
[1673857752158,6.55182856,1540.5,1540.3,3.27278678]
[1673857752364,6.55182856,1540.5,1539.9,20.163]
[1673857752585,6.49232,1540.3,1540.0,3.27278678]
[1673857752789,12.98464,1540.3,1540.0,3.27278678]
[1673857753449,0.004214,1540.4,1540.1,3.27278678]
[1673857753624,0.004214,1540.4,1540.2,3.27278678]
[1673857753961,0.06034856,1540.5,1540.3,3.27278678]
[1673857754178,0.06034856,1540.5,1540.3,9.76494678]
[1673857754513,0.06034856,1540.5,1540.4,3.27278678]
[1673857755928,0.06034856,1540.5,1540.4,19.25642678]
[1673857756392,0.06034856,1540.5,1540.4,27.07889416]
[1673857756552,0.06034856,1540.5,1540.4,30.43600158]
[1673857756762,0.06034856,1540.5,1540.4,38.94982158]
[1673857757636,0.06034856,1540.5,1540.4,31.71569238]
[1673857757859,0.06034856,1540.5,1540.4,24.6355342]
[1673857758181,0.06034856,1540.5,1540.4,18.1437142]
[1673857758390,0.06034856,1540.5,1540.4,12.76460678]
[1673857759607,0.06034856,1540.5,1540.4,28.24824678]
[1673857759814,0.06034856,1540.5,1540.4,25.74824678]
[1673857760181,0.06034856,1540.5,1540.4,32.49437598]
[1673857760703,0.06034856,1540.5,1540.4,19.25642678]
[1673857761070,0.06034856,1540.5,1540.4,21.10039773]
[1673857762343,0.06034856,1540.5,1540.4,27.59221773]
[1673857762557,0.06034856,1540.5,1540.4,21.10039773]
[1673857763628,0.98634856,1540.5,1540.4,6.27278678]
[1673857763840,0.98634856,1540.5,1540.2,6.49262]
[1673857764030,0.98634856,1540.5,1540.3,3.27278678]
[1673857764242,0.06034856,1540.5,1540.3,3.27278678]
[1673857765848,0.06034856,1540.5,1540.4,3.27278678]
[1673857766177,0.06034856,1540.5,1540.4,16.58370546]
[1673857766957,0.06034856,1540.5,1540.4,10.09188546]
[1673857767395,0.06034856,1540.5,1540.4,12.59188546]
[1673857767616,0.06034856,1540.5,1540.4,28.57552546]
[1673857767805,0.06034856,1540.5,1540.4,26.07552546]
[1673857769102,0.06034856,1540.5,1540.4,33.30965466]
[1673857769756,0.06034856,1540.5,1540.4,26.07552546]
[1673857769909,0.06034856,1540.5,1540.4,26.30552546]
[1673857770363,0.05824716,1540.5,1540.4,28.80552546]
[1673857771799,0.05824716,1540.5,1540.4,33.53965466]
[1673857772380,0.05824716,1540.5,1540.4,28.80552546]
[1673857773270,0.00097986,1540.7,1540.4,33.53965466]
[1673857773480,0.00097986,1540.7,1540.6,22.74569678]
[1673857773690,0.00097986,1540.7,1540.6,30.47982598]
[1673857774172,0.00097986,1540.7,1540.6,31.06816416]
[1673857774322,0.00097986,1540.7,1540.6,26.33403496]
[1673857775590,0.00097986,1540.7,1540.6,13.35209496]
[1673857775810,0.00097986,1540.7,1540.6,28.26762282]
[1673857776007,0.00097986,1540.7,1540.6,28.855961]
[1673857776886,0.00097986,1540.7,1540.6,22.364991]
[1673857777742,0.00097986,1540.7,1540.6,21.77665282]
[1673857778317,0.00097986,1540.7,1540.6,28.26762282]
[1673857780259,0.92697986,1540.7,1540.6,12.76375678]
[1673857780472,0.92697986,1540.7,1540.6,6.27278678]
[1673857780687,0.00097986,1540.7,1540.6,6.27278678]
[1673857781570,0.00097986,1540.7,1540.6,12.76375678]
[1673857782036,0.00097986,1540.7,1540.6,19.25472678]
[1673857782255,0.00097986,1540.7,1540.6,21.88815628]
[1673857786510,0.00097986,1540.7,1540.6,33.11325548]
[1673857786721,0.00097986,1540.7,1540.6,33.70159366]
[1673857786981,0.00097986,1540.7,1540.6,36.20159366]
[1673857787906,0.00129964,1540.8,1540.6,36.20159366]
[1673857788125,0.00129964,1540.8,1540.7,36.12072535]
[1673857788313,0.00129964,1540.8,1540.7,38.62072535]
[1673857788532,0.00129964,1540.8,1540.7,39.20906353]
[1673857788752,0.00129964,1540.8,1540.7,38.62072535]
[1673857789452,0.06695277,1540.9,1540.7,38.62072535]
[1673857789453,0.06836635,1541.0,1540.9,2.03604723]
[1673857789662,0.00036635,1541.0,1540.9,17.46560693]
[1673857789928,0.00036635,1541.0,1540.9,36.93473693]
[1673857790085,0.06836635,1541.3,1540.9,37.52307511]
[1673857790301,0.06836635,1541.3,1541.2,3.27278678]
[1673857790659,0.06836635,1541.3,1541.2,19.24968678]
[1673857790849,0.06836635,1541.3,1541.2,22.02442146]
[1673857791092,0.01836635,1541.3,1541.2,22.02442146]
[1673857791282,0.01836635,1541.3,1541.2,15.53597146]
[1673857791761,0.01836635,1541.3,1541.2,22.02442146]
[1673857792764,0.01836635,1541.3,1541.2,28.51287146]
[1673857792917,0.94436635,1541.3,1541.2,3.27278678]
[1673857793342,13.92040635,1541.3,1540.8,0.58833818]
[1673857793597,0.004214,1541.2,1540.5,6.49101]
[1673857794126,12.9282,1541.1,1540.5,8.99101]
[1673857794300,12.9282,1541.1,1540.6,0.899101]
[1673857795234,12.9282,1541.1,1540.7,3.27278678]
[1673857795490,12.9282,1541.1,1540.8,3.27278678]
[1673857795806,12.9282,1541.1,1540.9,3.27278678]
[1673857796020,12.9282,1541.1,1540.6,0.899101]
[1673857796190,1.29282,1541.0,1540.7,3.27278678]
[1673857796404,6.43893,1541.1,1540.8,3.27278678]
[1673857796738,6.43893,1541.1,1540.9,3.27278678]
[1673857797367,6.50659635,1541.3,1541.0,3.27278678]
[1673857797574,6.50659635,1541.3,1541.1,3.27278678]
[1673857797801,6.50659635,1541.3,1541.2,3.27278678]
[1673857798494,21.43115598,1541.3,1540.7,10.07487468]
[1673857798698,21.43115598,1541.3,1540.8,6.27278678]
[1673857798929,21.43115598,1541.3,1540.9,3.27278678]
[1673857799691,21.43115598,1541.3,1540.6,3.0]
[1673857799864,21.43115598,1541.3,1540.7,3.27278678]
[1673857800077,6.48894,1541.1,1540.8,3.27278678]
[1673857800288,6.48894,1541.1,1540.6,2.5]
[1673857800289,6.48894,1541.1,1540.9,3.27278678]
[1673857800517,12.97788,1541.1,1540.8,3.27278678]
[1673857800725,12.97788,1541.1,1540.4,0.58468468]
[1673857800946,12.97788,1541.1,1540.5,3.27278678]
[1673857801171,15.14305456,1541.1,1540.6,3.27278678]
[1673857801381,12.982094,1541.1,1540.7,3.27278678]
[1673857801693,12.982094,1541.1,1540.5,0.38574715]
[1673857801694,6.493154,1541.1,1540.8,3.27278678]
[1673857801853,6.493154,1541.1,1540.9,3.27278678]
[1673857801854,6.48894,1541.1,1540.9,3.27278678]
[1673857802233,12.97788,1541.1,1540.5,0.38574715]
[1673857802372,14.924529,1541.1,1540.6,3.27278678]
[1673857802793,0.004214,1541.0,1540.4,3.58430798]
[1673857803052,19.47015,1540.9,1540.5,3.27278678]
[1673857803576,19.474364,1540.9,1540.1,28.3008]
[1673857803800,19.474364,1540.9,1540.3,3.27278678]
[1673857803971,0.004214,1540.9,1540.4,16.58350546]
[1673857804320,0.004214,1540.9,1540.5,3.27278678]
[1673857804635,0.004214,1540.9,1540.4,0.58430798]
[1673857804636,12.983654,1540.9,1540.4,0.58430798]
[1673857804791,12.983654,1540.9,1540.4,3.27278678]
[1673857805218,15.000654,1540.9,1540.4,3.27278678]
[1673857805426,1.5000654,1540.8,1540.4,3.27278678]
[1673857805670,1.5000654,1540.8,1540.1,6.49285]
[1673857805671,12.98128,1540.7,1540.1,6.49285]
[1673857806005,15.48128,1540.7,1540.2,3.27278678]
[1673857806176,15.00328,1540.7,1540.2,3.27278678]
[1673857806531,15.00328,1540.7,1539.9,0.5519592]
[1673857806532,1.500328,1540.6,1539.9,0.5519592]
[1673857806682,19.47558,1540.4,1540.0,3.27278678]
[1673857806897,19.47558,1540.4,1540.1,3.27278678]
[1673857807217,6.49141,1540.5,1540.2,3.27278678]
[1673857807425,6.49127,1540.6,1540.3,3.27278678]
[1673857807637,6.49064,1540.7,1540.3,3.60006546]
[1673857807903,6.49064,1540.7,1540.4,3.27278678]
[1673857808268,8.41612,1540.9,1540.3,0.32727868]
[1673857808269,6.49012,1540.9,1540.5,3.27278678]
[1673857808470,6.49012,1540.9,1540.6,3.27278678]
[1673857809155,12.98024,1540.9,1540.6,3.27278678]
[1673857809366,14.931417,1540.9,1540.3,0.32727868]
[1673857809573,14.931417,1540.9,1540.4,3.27278678]
[1673857810469,14.931417,1540.9,1540.3,3.0]
[1673857810715,14.931417,1540.9,1540.3,3.27278678]
[1673857810889,2.5,1540.8,1540.3,3.27278678]
[1673857811112,19.47314,1540.6,1540.3,3.27278678]
[1673857811992,0.004214,1540.7,1540.4,3.27278678]
[1673857812151,12.98094,1540.8,1540.5,3.27278678]
[1673857812362,15.3168313,1540.8,1540.6,3.27278678]
[1673857813266,12.98094,1540.8,1540.6,3.27278678]
[1673857813629,12.984234,1540.9,1540.6,3.27278678]
[1673857813840,0.004214,1540.9,1540.6,9.76367678]
[1673857814101,0.004214,1540.9,1540.6,3.27278678]
[1673857814314,12.983704,1540.9,1540.6,4.89829746]
[1673857814492,12.983704,1540.9,1540.6,3.27278678]
[1673857815416,6.493924,1540.9,1540.7,3.27278678]
[1673857815884,12.983704,1540.9,1540.7,3.27278678]
[1673857816415,19.473484,1540.9,1540.7,3.27278678]
[1673857816988,19.473484,1540.9,1540.4,6.49158]
[1673857817254,19.473484,1540.9,1540.5,3.92194478]
[1673857817510,19.473484,1540.9,1540.6,3.27278678]
[1673857817639,12.983704,1540.9,1540.6,3.27278678]
[1673857818056,12.9792,1541.0,1540.7,3.27278678]
[1673857818057,6.4895,1541.0,1540.7,3.27278678]
[1673857818299,19.46751,1541.1,1540.8,3.60006546]
[1673857818896,19.46751,1541.1,1540.8,3.59696981]
[1673857819234,19.46751,1541.1,1540.5,0.649158]
[1673857819436,19.46751,1541.1,1540.6,3.27278678]
[1673857819644,19.46751,1541.1,1540.7,3.27278678]
[1673857820986,6.48915,1541.1,1540.8,3.27278678]
[1673857821262,6.48851,1541.2,1540.7,6.49051]
[1673857821263,6.48851,1541.2,1540.9,3.27278678]
[1673857821454,25.00179635,1541.3,1541.0,3.60006546]
[1673857821455,6.50661635,1541.3,1541.0,3.60006546]
[1673857821865,6.50661635,1541.3,1541.0,3.27278678]
[1673857821866,12.99486635,1541.3,1541.0,3.27278678]
[1673857822073,19.48311635,1541.3,1541.0,3.27278678]
[1673857822460,6.50661635,1541.3,1541.0,3.27278678]
[1673857822919,0.01836635,1541.3,1541.1,3.27278678]
[1673857823090,0.01836635,1541.3,1541.2,3.60006546]
[1673857824809,6.50638635,1541.3,1541.2,2.99993848]
[1673857824979,19.48242635,1541.3,1540.8,11.842]
[1673857825215,19.48242635,1541.3,1540.9,3.27278678]
[1673857825431,12.99440635,1541.3,1541.0,3.27278678]
[1673857825671,19.48242635,1541.3,1541.0,3.27278678]
[1673857825887,19.46661,1541.1,1541.0,3.27278678]
[1673857826099,19.46661,1541.1,1540.6,8.2864]
[1673857826318,19.46661,1541.1,1540.7,3.27278678]
[1673857826477,19.46661,1541.1,1540.8,3.27278678]
[1673857827155,19.470824,1541.1,1540.8,3.27278678]
[1673857827582,22.21159666,1541.1,1540.8,3.27278678]
[1673857827743,19.420824,1541.1,1540.8,3.27278678]
[1673857828825,19.420824,1541.1,1540.5,20.837838]
[1673857828826,12.881954,1541.1,1540.9,3.27278678]
[1673857829239,12.881954,1541.1,1540.6,6.49071]
[1673857829542,6.393084,1541.1,1540.7,9.76333678]
[1673857829746,19.46626,1541.2,1540.8,3.27278678]
[1673857829961,12.97741,1541.2,1540.9,3.27278678]
[1673857830316,12.97741,1541.2,1541.0,3.27278678]
[1673857831150,0.01836635,1541.3,1541.1,3.27278678]
[1673857831382,0.01836635,1541.3,1541.2,3.27278678]
[1673857831888,6.50638635,1541.3,1541.2,3.27278678]
[1673857832255,6.50638635,1541.3,1540.9,6.48941]
[1673857832474,6.50638635,1541.3,1541.0,3.92172778]
[1673857832475,12.99440635,1541.3,1541.0,3.92172778]
[1673857832675,12.99440635,1541.3,1541.1,3.27278678]
[1673857833674,19.48242635,1541.3,1541.1,3.27278678]
[1673857834357,19.48664035,1541.3,1541.1,3.27278678]
[1673857835966,19.48664035,1541.3,1540.8,9.0024]
[1673857836176,19.46661,1541.1,1540.8,3.27278678]
[1673857836387,19.46661,1541.1,1540.9,3.27278678]
[1673857836579,12.97725,1541.2,1541.0,3.27278678]
[1673857836808,19.46593,1541.2,1540.6,8.51291]
[1673857837021,22.06358303,1541.2,1540.7,3.27278678]
[1673857837195,22.06358303,1541.2,1540.8,3.27278678]
[1673857838721,2.5,1541.1,1540.6,4.2934168]
[1673857838875,19.46811,1541.0,1540.7,3.27278678]
[1673857840241,19.46811,1541.0,1540.5,21.438958]
[1673857840411,19.472324,1541.0,1540.6,3.27278678]
[1673857840819,19.472324,1541.0,1540.5,0.649158]
[1673857841161,19.472324,1541.0,1540.5,3.27278678]
[1673857841708,19.472324,1541.0,1540.6,3.27278678]
[1673857841901,12.982954,1541.0,1540.7,3.27278678]
[1673857842116,6.48937,1541.0,1540.8,3.60006546]
[1673857842327,12.97874,1541.0,1540.8,3.60006546]
[1673857842654,12.9783,1541.1,1540.9,3.27278678]
[1673857842872,19.46757,1541.1,1540.9,3.27278678]
[1673857843021,12.9783,1541.1,1540.9,3.27278678]
[1673857843228,6.48911,1541.1,1541.0,3.27278678]
[1673857843878,6.48846,1541.2,1541.0,3.27278678]
[1673857844299,6.48846,1541.2,1541.1,3.27278678]
[1673857844646,12.97692,1541.2,1541.1,3.27278678]
[1673857845646,19.469594,1541.2,1540.6,20.73977]
[1673857845856,19.469594,1541.2,1540.7,5.34676378]
[1673857846119,19.469594,1541.2,1540.8,3.27278678]
[1673857846295,19.469594,1541.2,1540.9,3.27278678]
[1673857846489,19.469594,1541.2,1541.0,3.27278678]
[1673857846872,6.48846,1541.2,1541.1,3.27278678]
[1673857847390,12.97691,1541.2,1541.1,3.27278678]
[1673857848481,12.97691,1541.2,1540.7,2.073977]
[1673857848692,19.46536,1541.2,1540.8,3.27278678]
[1673857848901,19.46536,1541.2,1540.9,3.27278678]
[1673857849164,6.48845,1541.2,1541.0,3.27278678]
[1673857849370,12.9769,1541.2,1541.0,3.27278678]
[1673857850109,13.4639,1541.2,1541.0,3.27278678]
[1673857850740,6.97545,1541.2,1541.0,3.27278678]
[1673857851059,6.97545,1541.2,1541.1,0.32727868]
[1673857851217,6.97545,1541.2,1541.0,3.27278678]
[1673857851798,6.97545,1541.2,1541.1,3.27278678]
[1673857852366,6.97545,1541.2,1540.8,7.02455638]
[1673857852633,13.4639,1541.2,1540.9,3.27278678]
[1673857852948,12.98026,1540.8,1540.4,2.5]
[1673857853106,12.98026,1540.8,1540.3,8.44023728]
[1673857853107,6.97769,1540.7,1540.3,8.44023728]
[1673857853322,6.97769,1540.7,1540.4,0.84402373]
[1673857853521,13.46828,1540.7,1540.3,0.13833728]
[1673857854207,0.4871,1540.7,1540.3,6.63054728]
[1673857854397,0.4871,1540.8,1540.3,19.87791648]
[1673857854606,0.00330432,1540.9,1540.3,20.26862002]
[1673857854821,0.00330432,1540.9,1540.4,2.5]
[1673857855046,6.49736832,1540.9,1540.5,0.25]
[1673857855213,0.4871,1540.8,1540.3,9.04225082]
[1673857855436,0.4871,1540.8,1540.4,3.0]
[1673857855786,6.98446832,1540.9,1540.4,3.0]
[1673857855997,13.47431832,1540.9,1540.5,0.3]
[1673857856148,13.47431832,1540.9,1540.3,5.15933728]
[1673857856363,6.98446832,1540.9,1540.3,14.15154728]
[1673857856619,0.49461832,1540.9,1540.3,23.91657406]
[1673857856828,0.49461832,1540.9,1540.5,6.49137]
[1673857857046,0.49040432,1540.9,1540.5,6.49137]
[1673857857264,0.49040432,1540.9,1540.6,3.27278678]
[1673857857416,0.49040432,1540.9,1540.7,3.27278678]
[1673857857626,0.49040432,1540.9,1540.8,3.27278678]
[1673857857838,0.49040432,1540.9,1540.8,3.26896017]
[1673857858521,0.00330432,1540.9,1540.8,3.26896017]
[1673857858675,0.00330432,1540.9,1540.8,3.59585619]
[1673857861325,0.00330432,1540.9,1540.8,3.26896017]
[1673857862908,0.00330432,1540.9,1540.8,19.24922017]
[1673857863079,0.00330432,1540.9,1540.8,25.73935017]
[1673857863475,0.00330432,1540.9,1540.8,6.26896017]
[1673857863670,0.00030432,1540.9,1540.8,25.73935017]
[1673857863883,0.00030432,1540.9,1540.8,29.88782011]
[1673857864406,0.00030432,1540.9,1540.8,32.38782011]
[1673857865785,0.00030432,1540.9,1540.8,39.50702867]
[1673857865997,0.01836635,1541.3,1540.9,2.5]
[1673857866213,0.01836635,1541.3,1541.1,3.27278678]
[1673857866389,0.01836635,1541.3,1541.2,16.57696546]
[1673857866600,0.01836635,1541.3,1541.2,19.57696546]
[1673857866818,0.01836635,1541.3,1541.2,6.60006546]
[1673857867325,0.01836635,1541.3,1541.2,3.60006546]
[1673857867749,12.99440635,1541.3,1541.0,10.7709]
[1673857867966,6.50638635,1541.3,1541.1,3.27278678]
[1673857868379,0.01836635,1541.3,1541.1,3.27278678]
[1673857869272,12.99448635,1541.3,1541.1,3.27278678]
[1673857869645,12.99448635,1541.3,1540.9,8.722]
[1673857869852,15.43002739,1541.3,1541.0,3.27278678]
[1673857870091,14.94312739,1541.3,1541.0,3.27278678]
[1673857870316,0.004214,1541.2,1540.8,10.7917]
[1673857870591,12.97786,1541.1,1540.8,3.27278678]
[1673857871266,12.97786,1541.1,1540.6,10.7222]
[1673857871481,12.97786,1541.1,1540.7,3.27278678]
[1673857871844,6.48971,1540.9,1540.7,3.27278678]
[1673857872433,0.487,1541.2,1540.8,9.76279678]
[1673857872734,13.48168635,1541.3,1540.9,3.27278678]
[1673857872957,12.977,1541.2,1540.9,3.27278678]
[1673857873685,0.487,1541.1,1540.9,3.27278678]
[1673857874109,0.487,1541.2,1541.0,3.27278678]
[1673857874418,0.01836635,1541.3,1541.1,3.27278678]
[1673857874570,0.01836635,1541.3,1541.2,3.27278678]
[1673857877654,0.01836635,1541.3,1541.2,3.60006546]
[1673857878098,7.04292583,1541.5,1541.2,3.60006546]
[1673857878405,7.04292583,1541.5,1541.3,3.27278678]
[1673857878627,7.03871183,1541.5,1541.4,3.27278678]
[1673857878819,0.06432183,1541.5,1541.4,3.27278678]
[1673857878987,0.06432183,1541.5,1541.4,3.60006546]
[1673857879741,0.06432183,1541.5,1541.2,0.32727868]
[1673857879742,13.96468183,1541.5,1541.2,0.32727868]
[1673857879959,20.45186183,1541.5,1540.9,20.23042]
[1673857880181,20.45186183,1541.5,1541.0,3.27278678]
[1673857880182,20.93876183,1541.5,1541.0,3.27278678]
[1673857880399,0.004214,1541.4,1541.1,3.27278678]
[1673857880609,6.48802,1541.3,1541.1,3.27278678]
[1673857881511,21.4108514,1541.3,1540.6,8.51037]
[1673857881811,12.97815,1541.1,1540.7,3.27278678]
[1673857881938,12.97522624,1541.1,1540.8,3.27278678]
[1673857882144,6.48614624,1541.1,1540.8,3.27278678]
[1673857882359,0.487,1541.0,1540.8,3.27278678]
[1673857882622,6.97314624,1541.1,1540.8,3.27278678]
[1673857884078,13.46222624,1541.1,1540.8,3.27278678]
[1673857884401,21.94682626,1541.1,1540.6,0.00742]
[1673857884616,21.94682626,1541.1,1540.7,3.27278678]
[1673857887921,21.94682626,1541.1,1540.8,3.27278678]
[1673857887922,6.97314624,1541.1,1540.8,3.27278678]
[1673857888192,13.4646,1541.2,1540.9,3.27278678]
[1673857888554,19.95327,1541.2,1540.6,2.02742]
[1673857888781,22.597422,1541.2,1540.7,3.27278678]
[1673857889232,22.601636,1541.2,1540.7,3.27278678]
[1673857889459,22.601636,1541.2,1540.8,3.27278678]
[1673857889768,22.601636,1541.2,1540.9,3.27278678]
[1673857889769,6.979884,1541.2,1540.9,3.27278678]
[1673857890090,6.979854,1541.2,1540.9,3.27278678]
[1673857890248,0.487,1541.2,1540.9,3.27278678]
[1673857890463,23.62088,1541.4,1540.9,16.25216678]
[1673857890691,6.48853,1541.2,1540.9,5.54698646]
[1673857890897,6.48853,1541.2,1540.9,3.27278678]
[1673857891122,0.487,1541.1,1540.9,3.27278678]
[1673857891561,6.48906,1541.1,1540.9,3.27278678]
[1673857892151,19.46699,1541.1,1540.6,2.756379]
[1673857892351,19.46699,1541.1,1540.7,3.27278678]
[1673857892564,19.46699,1541.1,1540.7,3.87570336]